[Event "GrandPrix_30.05"]
[Site "Chess.com"]
[Date "2020.05.30"]
[Round "5"]
[White "GMStefanova"]
[Black "Igrok3069"]
[Result "1/2-1/2"]
[WhiteElo "2343"]
[BlackElo "2545"]
[TimeControl "600+2"]
[EndTime "10:27:24 PDT"]
[Termination "Game drawn by repetition"]

1. d4 {[%clk 0:09:58]} 1... d5 {[%clk 0:10:00.4]} 2. Bf4 {[%clk 0:09:58.1]} 2...
c5 {[%clk 0:10:00.4]} 3. e3 {[%clk 0:09:58.1]} 3... cxd4 {[%clk 0:10:00.8]} 4.
exd4 {[%clk 0:09:58.2]} 4... Nc6 {[%clk 0:10:02]} 5. c3 {[%clk 0:09:56.1]} 5...
Bf5 {[%clk 0:10:02.2]} 6. Nd2 {[%clk 0:09:48.5]} 6... e6 {[%clk 0:10:01.3]} 7.
Ngf3 {[%clk 0:09:45.4]} 7... Bd6 {[%clk 0:09:59]} 8. Bg3 {[%clk 0:09:30.8]} 8...
Nge7 {[%clk 0:09:56.9]} 9. Nh4 {[%clk 0:09:09.6]} 9... O-O {[%clk 0:09:26.6]}
10. Nxf5 {[%clk 0:09:06.9]} 10... Nxf5 {[%clk 0:08:44.1]} 11. Bd3 {[%clk
0:09:06.9]} 11... Nce7 {[%clk 0:08:45.3]} 12. O-O {[%clk 0:08:57.4]} 12... Qb6
{[%clk 0:07:03.4]} 13. Rb1 {[%clk 0:08:46.5]} 13... Qc7 {[%clk 0:06:26.5]} 14.
Re1 {[%clk 0:08:30.8]} 14... Rab8 {[%clk 0:06:25.6]} 15. a4 {[%clk 0:08:09.7]}
15... a6 {[%clk 0:06:05.6]} 16. Qe2 {[%clk 0:08:04.1]} 16... Rbe8 {[%clk
0:05:59.2]} 17. Nf3 {[%clk 0:07:46.9]} 17... h6 {[%clk 0:04:55.7]} 18. Ra1
{[%clk 0:07:15.4]} 18... Qd7 {[%clk 0:04:28.5]} 19. Ne5 {[%clk 0:06:39.2]} 19...
Qc7 {[%clk 0:04:21.5]} 20. Qh5 {[%clk 0:05:09.7]} 20... g6 {[%clk 0:04:06.9]}
21. Qe2 {[%clk 0:04:41.9]} 21... Nxg3 {[%clk 0:04:00.4]} 22. hxg3 {[%clk
0:04:37.7]} 22... h5 {[%clk 0:03:50.1]} 23. g4 {[%clk 0:04:32.2]} 23... hxg4
{[%clk 0:03:41.7]} 24. Qxg4 {[%clk 0:04:13.9]} 24... Bxe5 {[%clk 0:03:12.5]} 25.
Rxe5 {[%clk 0:03:59.7]} 25... Kg7 {[%clk 0:03:11.3]} 26. Rae1 {[%clk 0:03:36.7]}
26... Rh8 {[%clk 0:03:09]} 27. f4 {[%clk 0:02:52.4]} 27... Ref8 {[%clk
0:02:38.4]} 28. Kf2 {[%clk 0:02:38.6]} 28... Rh6 {[%clk 0:02:33.5]} 29. f5
{[%clk 0:01:40.6]} 29... Nc6 {[%clk 0:01:40.6]} 30. R5e3 {[%clk 0:01:26]} 30...
exf5 {[%clk 0:01:21.7]} 31. Bxf5 {[%clk 0:01:25.1]} 31... Rfh8 {[%clk
0:01:08.2]} 32. Bd3 {[%clk 0:00:50.6]} 32... Rh4 {[%clk 0:01:08]} 33. Qg5 {[%clk
0:00:41.8]} 33... R8h5 {[%clk 0:00:36.5]} 34. Qg3 {[%clk 0:00:42.2]} 34... Rf4+
{[%clk 0:00:35]} 35. Ke2 {[%clk 0:00:41]} 35... Rhh4 {[%clk 0:00:29.4]} 36. Kd2
{[%clk 0:00:37.1]} 36... Rhg4 {[%clk 0:00:29.9]} 37. Qh3 {[%clk 0:00:26.2]}
37... Rh4 {[%clk 0:00:21.3]} 38. Qg3 {[%clk 0:00:27.3]} 38... Qa5 {[%clk
0:00:17.8]} 39. Kc1 {[%clk 0:00:07.6]} 39... Qxa4 {[%clk 0:00:17.6]} 40. Kb1
{[%clk 0:00:05]} 40... Qa5 {[%clk 0:00:14.8]} 41. Bc2 {[%clk 0:00:05.7]} 41...
Qd8 {[%clk 0:00:15]} 42. Re8 {[%clk 0:00:05.9]} 42... Qf6 {[%clk 0:00:14.8]} 43.
Ka2 {[%clk 0:00:04.6]} 43... Rhg4 {[%clk 0:00:12.3]} 44. Qh3 {[%clk 0:00:05.4]}
44... Rh4 {[%clk 0:00:11.6]} 45. Qg3 {[%clk 0:00:05.7]} 45... Rhg4 {[%clk
0:00:10.8]} 46. Qh3 {[%clk 0:00:06.6]} 46... Rh4 {[%clk 0:00:11.8]} 47. Qg3
{[%clk 0:00:08]} 1/2-1/2

[Event "GrandPrix_30.05"]
[Site "Chess.com"]
[Date "2020.05.30"]
[Round "5"]
[White "LazovT"]
[Black "Igor_Lysyj"]
[Result "1-0"]
[WhiteElo "2286"]
[BlackElo "2418"]
[TimeControl "600+2"]
[EndTime "10:27:26 PDT"]
[Termination "LazovT won by resignation"]

1. e4 {[%clk 0:09:00.2]} 1... e5 {[%clk 0:10:00.2]} 2. Nf3 {[%clk 0:09:00]} 2...
Nc6 {[%clk 0:10:00.7]} 3. Bc4 {[%clk 0:09:00.9]} 3... Bc5 {[%clk 0:10:00.7]} 4.
c3 {[%clk 0:09:00.3]} 4... Nf6 {[%clk 0:10:00.5]} 5. d3 {[%clk 0:09:01.6]} 5...
a6 {[%clk 0:09:59.5]} 6. a4 {[%clk 0:09:01.8]} 6... Ba7 {[%clk 0:09:57.8]} 7.
Bg5 {[%clk 0:09:01.8]} 7... h6 {[%clk 0:09:57.1]} 8. Bh4 {[%clk 0:09:03]} 8...
d6 {[%clk 0:09:57.8]} 9. Nbd2 {[%clk 0:09:02.6]} 9... g5 {[%clk 0:09:51.4]} 10.
Bg3 {[%clk 0:09:03.1]} 10... Qe7 {[%clk 0:09:50.5]} 11. h3 {[%clk 0:08:09.3]}
11... Nh5 {[%clk 0:09:22.2]} 12. Bh2 {[%clk 0:08:05]} 12... Nf4 {[%clk
0:08:50.5]} 13. Bxf4 {[%clk 0:08:03.7]} 13... gxf4 {[%clk 0:08:51.5]} 14. O-O
{[%clk 0:08:04.6]} 14... Qf6 {[%clk 0:08:47.7]} 15. Kh2 {[%clk 0:08:01.5]} 15...
Ne7 {[%clk 0:08:46.9]} 16. Qe2 {[%clk 0:07:59]} 16... h5 {[%clk 0:08:42.4]} 17.
b4 {[%clk 0:07:01.6]} 17... Bd7 {[%clk 0:08:12.9]} 18. b5 {[%clk 0:07:01.1]}
18... axb5 {[%clk 0:08:04.1]} 19. axb5 {[%clk 0:06:59.3]} 19... O-O {[%clk
0:08:04]} 20. Ra2 {[%clk 0:06:11.3]} 20... Bb6 {[%clk 0:08:01.6]} 21. Rfa1
{[%clk 0:06:08.2]} 21... Rxa2 {[%clk 0:08:01.5]} 22. Rxa2 {[%clk 0:06:10]} 22...
Ng6 {[%clk 0:07:47.5]} 23. d4 {[%clk 0:06:01]} 23... Kg7 {[%clk 0:07:36.7]} 24.
Bd5 {[%clk 0:05:44.9]} 24... exd4 {[%clk 0:06:57.3]} 25. cxd4 {[%clk 0:05:37]}
25... Bxd4 {[%clk 0:06:57.7]} 26. Nxd4 {[%clk 0:05:36.1]} 26... Qxd4 {[%clk
0:06:57.6]} 27. Bxb7 {[%clk 0:05:19.3]} 27... Rb8 {[%clk 0:06:31.9]} 28. Bc6
{[%clk 0:05:04]} 28... Bxc6 {[%clk 0:03:57.6]} 29. bxc6 {[%clk 0:05:05.9]} 29...
Qc5 {[%clk 0:03:58.6]} 30. Nf3 {[%clk 0:04:27.5]} 30... Rb1 {[%clk 0:03:41.5]}
31. Rc2 {[%clk 0:03:46.7]} 31... Qa5 {[%clk 0:03:40]} 32. Nd2 {[%clk 0:03:36.3]}
32... Qe5 {[%clk 0:03:22.5]} 33. Qf3 {[%clk 0:03:01.3]} 33... Re1 {[%clk
0:02:49.6]} 34. Nc4 {[%clk 0:01:34.7]} 34... Qd4 {[%clk 0:02:05.5]} 35. Nxd6
{[%clk 0:00:54.5]} 35... cxd6 {[%clk 0:01:09.5]} 36. c7 {[%clk 0:00:56.4]} 36...
Ne7 {[%clk 0:00:57.3]} 37. c8=Q {[%clk 0:00:49.5]} 37... Nxc8 {[%clk 0:00:57.5]}
38. Rxc8 {[%clk 0:00:51.4]} 38... Qe5 {[%clk 0:00:46.1]} 39. Rc4 {[%clk
0:00:42]} 39... Kg6 {[%clk 0:00:43.9]} 40. Ra4 {[%clk 0:00:39.4]} 40... Qb5
{[%clk 0:00:37.6]} 41. Rd4 {[%clk 0:00:15.8]} 41... Qb1 {[%clk 0:00:13.9]} 42.
Rxd6+ {[%clk 0:00:13.6]} 42... Kg7 {[%clk 0:00:10.1]} 43. Qxf4 {[%clk
0:00:10.4]} 43... Rh1+ {[%clk 0:00:10.7]} 44. Kg3 {[%clk 0:00:11.8]} 44... Qb3+
{[%clk 0:00:11.9]} 45. Kh4 {[%clk 0:00:12]} 45... Qb5 {[%clk 0:00:05.7]} 46.
Qf6+ {[%clk 0:00:12.7]} 46... Kh7 {[%clk 0:00:06.1]} 47. Qh6+ {[%clk 0:00:13.2]}
1-0

[Event "GrandPrix_30.05"]
[Site "Chess.com"]
[Date "2020.05.30"]
[Round "5"]
[White "ehrenfeld"]
[Black "PresidenteMNE"]
[Result "1-0"]
[WhiteElo "2021"]
[BlackElo "2092"]
[TimeControl "600+2"]
[EndTime "10:27:26 PDT"]
[Termination "ehrenfeld won by resignation"]

1. e4 {[%clk 0:10:01.9]} 1... e6 {[%clk 0:09:57.5]} 2. d3 {[%clk 0:10:01.3]}
2... b6 {[%clk 0:09:58.9]} 3. f4 {[%clk 0:09:58.7]} 3... Bb7 {[%clk 0:10:00.4]}
4. Nf3 {[%clk 0:09:59.4]} 4... c5 {[%clk 0:10:01.3]} 5. g3 {[%clk 0:09:58.3]}
5... Nc6 {[%clk 0:10:01.7]} 6. Bg2 {[%clk 0:09:58.7]} 6... h5 {[%clk 0:10:02.3]}
7. O-O {[%clk 0:09:28.6]} 7... h4 {[%clk 0:10:02.1]} 8. Nxh4 {[%clk 0:09:25.4]}
8... Rxh4 {[%clk 0:10:03.1]} 9. gxh4 {[%clk 0:09:25.8]} 9... Qxh4 {[%clk
0:10:05]} 10. Nd2 {[%clk 0:09:20.3]} 10... Nf6 {[%clk 0:10:04.7]} 11. Nf3 {[%clk
0:09:19]} 11... Qh8 {[%clk 0:10:00.3]} 12. c3 {[%clk 0:08:57.8]} 12... Be7
{[%clk 0:09:51.4]} 13. Bd2 {[%clk 0:08:58.2]} 13... Nh5 {[%clk 0:09:52.1]} 14.
Qe2 {[%clk 0:08:47.4]} 14... O-O-O {[%clk 0:09:52.1]} 15. a3 {[%clk 0:08:34.8]}
15... f6 {[%clk 0:09:48.2]} 16. b4 {[%clk 0:08:32.2]} 16... Rg8 {[%clk 0:09:46]}
17. bxc5 {[%clk 0:08:25.2]} 17... Bxc5+ {[%clk 0:09:45.8]} 18. d4 {[%clk
0:08:24.9]} 18... Be7 {[%clk 0:09:34.2]} 19. a4 {[%clk 0:07:11.8]} 19... g5
{[%clk 0:09:33.8]} 20. fxg5 {[%clk 0:07:11.1]} 20... fxg5 {[%clk 0:09:35.7]} 21.
Ne1 {[%clk 0:06:35.3]} 21... g4 {[%clk 0:08:22.5]} 22. Nc2 {[%clk 0:06:09.5]}
22... Na5 {[%clk 0:07:21.9]} 23. Rf7 {[%clk 0:05:46.8]} 23... g3 {[%clk
0:06:26]} 24. h3 {[%clk 0:05:34.9]} 24... Bd8 {[%clk 0:06:14.4]} 25. Raf1 {[%clk
0:05:25.3]} 25... Nf6 {[%clk 0:05:41.7]} 26. Bf4 {[%clk 0:04:50.2]} 26... Qh4
{[%clk 0:04:56]} 27. Be5 {[%clk 0:04:11.4]} 27... Nxe4 {[%clk 0:04:49]} 28. R7f4
{[%clk 0:04:02.6]} 28... Qh6 {[%clk 0:02:53.9]} 29. Rxe4 {[%clk 0:03:15]} 29...
Bxe4 {[%clk 0:02:53.4]} 30. Qxe4 {[%clk 0:03:15]} 30... d5 {[%clk 0:02:49.1]}
31. Qe2 {[%clk 0:03:07.1]} 31... Nc4 {[%clk 0:02:40.4]} 32. Bf4 {[%clk
0:03:03.7]} 32... Qg6 {[%clk 0:02:34]} 33. Ne3 {[%clk 0:03:03.9]} 33... Na5
{[%clk 0:02:26.5]} 34. Ng4 {[%clk 0:03:03.3]} 34... Bc7 {[%clk 0:02:18.6]} 35.
Bxc7 {[%clk 0:03:01.1]} 35... Kxc7 {[%clk 0:02:20.5]} 36. Qe5+ {[%clk
0:02:47.9]} 36... Kb7 {[%clk 0:02:11.8]} 37. Qxg3 {[%clk 0:02:44.5]} 37... Qc2
{[%clk 0:02:04.6]} 38. Rf7+ {[%clk 0:02:36.4]} 38... Ka6 {[%clk 0:02:05.2]} 39.
Qc7 {[%clk 0:01:59.2]} 39... Qxa4 {[%clk 0:02:05]} 40. Bf1+ {[%clk 0:01:41]}
40... Nc4 {[%clk 0:02:05.6]} 41. Qxa7+ {[%clk 0:01:41.8]} 41... Kb5 {[%clk
0:02:06.7]} 42. Qd7+ {[%clk 0:01:37]} 42... Ka5 {[%clk 0:02:06]} 43. Qxa4+
{[%clk 0:01:36.3]} 43... Kxa4 {[%clk 0:02:07.9]} 44. Bxc4 {[%clk 0:01:34]} 44...
dxc4 {[%clk 0:02:08.6]} 45. Rf3 {[%clk 0:00:22.1]} 45... b5 {[%clk 0:02:02]} 46.
Kf2 {[%clk 0:00:20.8]} 46... Kb3 {[%clk 0:01:56.3]} 47. Ne5 {[%clk 0:00:16.2]}
47... b4 {[%clk 0:01:38.4]} 48. cxb4+ {[%clk 0:00:15.1]} 48... c3 {[%clk
0:01:39.8]} 49. b5 {[%clk 0:00:08.7]} 49... Rb8 {[%clk 0:01:30.9]} 50. h4 {[%clk
0:00:06.9]} 50... Rxb5 {[%clk 0:01:31.8]} 51. h5 {[%clk 0:00:07.8]} 51... Rb8
{[%clk 0:01:31.4]} 52. h6 {[%clk 0:00:08.4]} 52... Rh8 {[%clk 0:01:31.2]} 53.
Rh3 {[%clk 0:00:09.2]} 53... Kb2 {[%clk 0:01:21.5]} 54. Nd3+ {[%clk 0:00:08.1]}
54... Kc2 {[%clk 0:01:21.2]} 55. Ke3 {[%clk 0:00:09.1]} 55... Kb3 {[%clk
0:01:18.6]} 56. Ke4 {[%clk 0:00:08.3]} 56... c2 {[%clk 0:01:16.5]} 57. h7 {[%clk
0:00:07.9]} 57... Kc3 {[%clk 0:01:11]} 58. Ne1+ {[%clk 0:00:07.6]} 58... Kd2
{[%clk 0:01:07.2]} 59. Nxc2 {[%clk 0:00:08.2]} 59... Kxc2 {[%clk 0:01:08]} 60.
Ke5 {[%clk 0:00:09.3]} 60... Rxh7 {[%clk 0:01:08.9]} 61. Rxh7 {[%clk 0:00:08.4]}
1-0

[Event "GrandPrix_30.05"]
[Site "Chess.com"]
[Date "2020.05.30"]
[Round "5"]
[White "Keks2017"]
[Black "VerdeNotte"]
[Result "0-1"]
[WhiteElo "2362"]
[BlackElo "2672"]
[TimeControl "600+2"]
[EndTime "10:27:28 PDT"]
[Termination "VerdeNotte won by resignation"]

1. g3 {[%clk 0:09:59.4]} 1... g6 {[%clk 0:09:54.3]} 2. Bg2 {[%clk 0:10:00.1]}
2... Bg7 {[%clk 0:09:55.9]} 3. e4 {[%clk 0:10:00.7]} 3... c5 {[%clk 0:09:56.6]}
4. d3 {[%clk 0:10:01.5]} 4... Nc6 {[%clk 0:09:57.7]} 5. f4 {[%clk 0:10:02.2]}
5... e6 {[%clk 0:09:54.5]} 6. Nf3 {[%clk 0:10:02.8]} 6... Nge7 {[%clk
0:09:55.7]} 7. O-O {[%clk 0:10:03.4]} 7... d5 {[%clk 0:09:56.7]} 8. Qe2 {[%clk
0:10:00.5]} 8... O-O {[%clk 0:09:54]} 9. c3 {[%clk 0:10:00.8]} 9... b5 {[%clk
0:09:52.2]} 10. e5 {[%clk 0:10:00.1]} 10... a5 {[%clk 0:09:36.2]} 11. Be3 {[%clk
0:09:31.9]} 11... d4 {[%clk 0:09:30.6]} 12. Bf2 {[%clk 0:09:31.7]} 12... a4
{[%clk 0:09:00.6]} 13. cxd4 {[%clk 0:09:21]} 13... cxd4 {[%clk 0:09:00.8]} 14.
Nbd2 {[%clk 0:09:21.4]} 14... Bb7 {[%clk 0:08:52.1]} 15. Ne4 {[%clk 0:09:18.6]}
15... Nf5 {[%clk 0:08:26.2]} 16. Nc5 {[%clk 0:09:09.5]} 16... Bc8 {[%clk
0:08:06.5]} 17. Ng5 {[%clk 0:09:03.3]} 17... Ra7 {[%clk 0:06:58]} 18. Ncxe6
{[%clk 0:08:22.9]} 18... fxe6 {[%clk 0:06:40.1]} 19. Bxc6 {[%clk 0:08:22.1]}
19... h6 {[%clk 0:06:22.5]} 20. Nf3 {[%clk 0:08:05.9]} 20... g5 {[%clk
0:05:39.2]} 21. fxg5 {[%clk 0:07:42.7]} 21... hxg5 {[%clk 0:05:39.3]} 22. Qe4
{[%clk 0:06:51.7]} 22... Rc7 {[%clk 0:04:57.4]} 23. Rac1 {[%clk 0:06:42.7]}
23... Rxc6 {[%clk 0:03:50.5]} 24. Qxc6 {[%clk 0:05:47.4]} 24... g4 {[%clk
0:03:49.9]} 25. Nh4 {[%clk 0:04:52.2]} 25... Bh6 {[%clk 0:02:31.8]} 26. Nxf5
{[%clk 0:04:15.4]} 26... Bxc1 {[%clk 0:02:31.3]} 27. Rxc1 {[%clk 0:04:12.8]}
27... Bd7 {[%clk 0:01:59.8]} 28. Qe4 {[%clk 0:02:18.6]} 28... Rxf5 {[%clk
0:01:59.6]} 29. Qxg4+ {[%clk 0:02:14.3]} 29... Rg5 {[%clk 0:02:00.7]} 30. Qxd4
{[%clk 0:02:11]} 30... Rg7 {[%clk 0:02:00]} 31. Be3 {[%clk 0:01:38.2]} 31... Qa8
{[%clk 0:01:36.7]} 32. Rf1 {[%clk 0:01:23.4]} 32... Qd5 {[%clk 0:01:05.3]} 33.
Qxd5 {[%clk 0:01:21.9]} 33... exd5 {[%clk 0:01:07.2]} 34. Rf6 {[%clk 0:01:11.7]}
34... Bg4 {[%clk 0:00:59.2]} 35. Bc5 {[%clk 0:00:48]} 35... Bh5 {[%clk
0:00:44.7]} 36. Kf2 {[%clk 0:00:34.4]} 36... Rg5 {[%clk 0:00:43.1]} 37. d4
{[%clk 0:00:31.3]} 37... Rg4 {[%clk 0:00:37.2]} 38. h3 {[%clk 0:00:24.9]} 38...
Re4 {[%clk 0:00:34.7]} 39. g4 {[%clk 0:00:25.5]} 39... Bf7 {[%clk 0:00:35.9]}
40. a3 {[%clk 0:00:19.4]} 40... Kg7 {[%clk 0:00:35.5]} 41. Kg3 {[%clk
0:00:19.6]} 41... Re3+ {[%clk 0:00:29.4]} 42. Kf4 {[%clk 0:00:20]} 42... Rxh3
{[%clk 0:00:27]} 43. e6 {[%clk 0:00:19.2]} 43... Kxf6 {[%clk 0:00:26.8]} 44.
exf7 {[%clk 0:00:18.4]} 44... Kxf7 {[%clk 0:00:27.8]} 45. Ke5 {[%clk 0:00:19]}
45... Rb3 {[%clk 0:00:26.3]} 46. Kxd5 {[%clk 0:00:19.4]} 46... Rxb2 {[%clk
0:00:27.9]} 47. g5 {[%clk 0:00:17.4]} 47... b4 {[%clk 0:00:21.4]} 48. Kc4 {[%clk
0:00:17.5]} 48... b3 {[%clk 0:00:20.3]} 49. Kb4 {[%clk 0:00:16.8]} 49... Rc2
{[%clk 0:00:18.9]} 50. Kxa4 {[%clk 0:00:17.2]} 50... b2 {[%clk 0:00:20.1]} 0-1

[Event "GrandPrix_30.05"]
[Site "Chess.com"]
[Date "2020.05.30"]
[Round "5"]
[White "Durarbayli"]
[Black "igorkovalenko"]
[Result "1-0"]
[WhiteElo "2601"]
[BlackElo "2436"]
[TimeControl "600+2"]
[EndTime "10:27:33 PDT"]
[Termination "Durarbayli won by resignation"]

1. e4 {[%clk 0:10:01.9]} 1... c5 {[%clk 0:09:57.3]} 2. b3 {[%clk 0:09:58.9]}
2... Nf6 {[%clk 0:09:56.3]} 3. e5 {[%clk 0:09:56.3]} 3... Nd5 {[%clk 0:09:57.3]}
4. Bb2 {[%clk 0:09:53.6]} 4... g6 {[%clk 0:09:43.5]} 5. Nc3 {[%clk 0:09:53.2]}
5... Nxc3 {[%clk 0:09:32.3]} 6. dxc3 {[%clk 0:09:55.1]} 6... Bg7 {[%clk
0:09:33]} 7. f4 {[%clk 0:09:56.1]} 7... O-O {[%clk 0:09:24.3]} 8. Qd2 {[%clk
0:09:55.4]} 8... d6 {[%clk 0:08:43.5]} 9. O-O-O {[%clk 0:09:46.2]} 9... Nc6
{[%clk 0:08:43.7]} 10. exd6 {[%clk 0:09:37.2]} 10... exd6 {[%clk 0:08:45.6]} 11.
a3 {[%clk 0:09:17.9]} 11... Re8 {[%clk 0:07:14.4]} 12. h3 {[%clk 0:07:22.8]}
12... d5 {[%clk 0:06:31.2]} 13. Qxd5 {[%clk 0:07:02.3]} 13... Qc7 {[%clk
0:06:09.4]} 14. Qf3 {[%clk 0:06:36]} 14... Bf5 {[%clk 0:05:53]} 15. Bb5 {[%clk
0:05:35.5]} 15... Be4 {[%clk 0:05:42.6]} 16. Qf2 {[%clk 0:05:32.5]} 16... a6
{[%clk 0:05:33]} 17. Bxc6 {[%clk 0:04:25.2]} 17... Qxc6 {[%clk 0:05:31.6]} 18.
Nf3 {[%clk 0:04:20.1]} 18... c4 {[%clk 0:05:10]} 19. b4 {[%clk 0:03:45.3]} 19...
Bxf3 {[%clk 0:04:47.7]} 20. gxf3 {[%clk 0:03:07.2]} 20... Qf6 {[%clk 0:04:34.8]}
21. Rd4 {[%clk 0:02:39.8]} 21... b5 {[%clk 0:04:33.7]} 22. Qd2 {[%clk
0:02:27.3]} 22... Re6 {[%clk 0:04:17.9]} 23. Kb1 {[%clk 0:02:14.8]} 23... Rae8
{[%clk 0:04:16.9]} 24. Bc1 {[%clk 0:02:06.7]} 24... Re2 {[%clk 0:04:11.5]} 25.
Qd1 {[%clk 0:02:07.6]} 25... Qc6 {[%clk 0:03:40.3]} 26. Rd8 {[%clk 0:01:08.9]}
26... Bxc3 {[%clk 0:03:36.2]} 27. Qxe2 {[%clk 0:00:54.6]} 27... Rxd8 {[%clk
0:03:36.2]} 28. f5 {[%clk 0:00:56.2]} 28... Re8 {[%clk 0:03:13.1]} 29. Qg2
{[%clk 0:00:49]} 29... Bg7 {[%clk 0:03:12.6]} 30. fxg6 {[%clk 0:00:46.8]} 30...
hxg6 {[%clk 0:02:32.7]} 31. Bb2 {[%clk 0:00:25.8]} 31... Bxb2 {[%clk 0:02:32.6]}
32. Kxb2 {[%clk 0:00:27.7]} 32... Qf6+ {[%clk 0:02:33.8]} 33. Ka2 {[%clk
0:00:18]} 33... Re3 {[%clk 0:02:35.1]} 34. Qd2 {[%clk 0:00:15]} 34... Rxf3
{[%clk 0:02:18.7]} 35. Re1 {[%clk 0:00:11.8]} 35... Kg7 {[%clk 0:02:19.5]} 36.
Re3 {[%clk 0:00:10.1]} 36... Rf2 {[%clk 0:02:07.1]} 37. Re2 {[%clk 0:00:10.9]}
37... Rf1 {[%clk 0:02:03.2]} 38. Re1 {[%clk 0:00:11.8]} 38... Rf5 {[%clk
0:01:10.6]} 39. Re8 {[%clk 0:00:11.5]} 39... Rf2 {[%clk 0:00:49.7]} 40. Re2
{[%clk 0:00:12]} 40... c3 {[%clk 0:00:51]} 41. Qd3 {[%clk 0:00:04.7]} 41... Rf4
{[%clk 0:00:39.4]} 42. Re8 {[%clk 0:00:04.1]} 42... Rf3 {[%clk 0:00:33.1]} 43.
Qd5 {[%clk 0:00:03.9]} 43... Rxh3 {[%clk 0:00:27.8]} 44. Qa8 {[%clk 0:00:04]}
44... Rh2 {[%clk 0:00:20.9]} 45. Rg8+ {[%clk 0:00:04.9]} 45... Kh7 {[%clk
0:00:21.8]} 46. Kb3 {[%clk 0:00:05.2]} 46... Qd4 {[%clk 0:00:18.2]} 47. Rc8
{[%clk 0:00:05.1]} 47... Qd5+ {[%clk 0:00:15.4]} 48. Qxd5 {[%clk 0:00:05.2]} 1-0

[Event "GrandPrix_30.05"]
[Site "Chess.com"]
[Date "2020.05.30"]
[Round "5"]
[White "vpantev"]
[Black "sahidi"]
[Result "1-0"]
[WhiteElo "2609"]
[BlackElo "2216"]
[TimeControl "600+2"]
[EndTime "10:27:40 PDT"]
[Termination "vpantev won by resignation"]

1. d4 {[%clk 0:09:56.8]} 1... Nf6 {[%clk 0:10:00.1]} 2. Nf3 {[%clk 0:09:57.3]}
2... d5 {[%clk 0:09:39.8]} 3. Bf4 {[%clk 0:09:56.7]} 3... c5 {[%clk 0:09:39.1]}
4. e3 {[%clk 0:09:57.1]} 4... Nc6 {[%clk 0:09:39.7]} 5. dxc5 {[%clk 0:09:49.6]}
5... Bg4 {[%clk 0:08:53.5]} 6. Be2 {[%clk 0:09:18.6]} 6... e6 {[%clk 0:08:36.3]}
7. O-O {[%clk 0:09:07.2]} 7... Bxc5 {[%clk 0:08:34.9]} 8. a3 {[%clk 0:09:07.1]}
8... O-O {[%clk 0:08:28.4]} 9. Nbd2 {[%clk 0:09:00.8]} 9... a5 {[%clk
0:07:45.2]} 10. h3 {[%clk 0:08:50.2]} 10... Bh5 {[%clk 0:07:03.6]} 11. Ne5
{[%clk 0:07:25.5]} 11... Bxe2 {[%clk 0:06:57.2]} 12. Qxe2 {[%clk 0:07:24.6]}
12... Bd6 {[%clk 0:06:45.5]} 13. Ndf3 {[%clk 0:07:11.8]} 13... Nxe5 {[%clk
0:06:43.7]} 14. Nxe5 {[%clk 0:06:52.3]} 14... Qc7 {[%clk 0:06:43.8]} 15. Nd3
{[%clk 0:06:51.6]} 15... e5 {[%clk 0:06:26.1]} 16. Bg3 {[%clk 0:06:38.5]} 16...
Rac8 {[%clk 0:06:16.3]} 17. c3 {[%clk 0:06:35.1]} 17... Rfe8 {[%clk 0:06:13.8]}
18. Bh4 {[%clk 0:06:00.2]} 18... Ne4 {[%clk 0:06:01.5]} 19. f3 {[%clk
0:05:53.2]} 19... Nc5 {[%clk 0:05:58]} 20. Rad1 {[%clk 0:05:43.6]} 20... Ne6
{[%clk 0:05:18.1]} 21. Bf2 {[%clk 0:05:18]} 21... Qc4 {[%clk 0:04:37.8]} 22.
Rfe1 {[%clk 0:05:06]} 22... b5 {[%clk 0:04:35]} 23. e4 {[%clk 0:04:55.4]} 23...
dxe4 {[%clk 0:04:08.2]} 24. Qxe4 {[%clk 0:04:45.8]} 24... Qxe4 {[%clk
0:04:02.3]} 25. fxe4 {[%clk 0:04:42.5]} 25... f6 {[%clk 0:03:48.4]} 26. Be3
{[%clk 0:04:06.4]} 26... Be7 {[%clk 0:03:24.8]} 27. Kf1 {[%clk 0:03:40.6]} 27...
Kf7 {[%clk 0:03:05.2]} 28. Nf2 {[%clk 0:03:26.6]} 28... a4 {[%clk 0:02:49.5]}
29. Rd5 {[%clk 0:03:18.5]} 29... Nc7 {[%clk 0:02:49.1]} 30. Rd3 {[%clk
0:03:14.8]} 30... Red8 {[%clk 0:02:22.4]} 31. Red1 {[%clk 0:03:15.3]} 31... Rxd3
{[%clk 0:02:22.8]} 32. Rxd3 {[%clk 0:03:16.1]} 32... Ke6 {[%clk 0:02:22.6]} 33.
Ke2 {[%clk 0:03:16.5]} 33... Na6 {[%clk 0:02:14.2]} 34. Rd5 {[%clk 0:03:02.2]}
34... Nc7 {[%clk 0:02:10.5]} 35. Rd1 {[%clk 0:02:53.4]} 35... Bd6 {[%clk
0:01:36.7]} 36. Nd3 {[%clk 0:02:44.3]} 36... Na6 {[%clk 0:01:34.7]} 37. g4
{[%clk 0:02:30.8]} 37... Rc4 {[%clk 0:01:34.7]} 38. Kf3 {[%clk 0:02:25.2]} 38...
Nc7 {[%clk 0:01:32.6]} 39. Bd2 {[%clk 0:01:28.4]} 39... Ke7 {[%clk 0:01:28.5]}
40. Nb4 {[%clk 0:01:26.8]} 40... Bxb4 {[%clk 0:01:19.7]} 41. axb4 {[%clk
0:01:27.1]} 41... Ne6 {[%clk 0:00:50.7]} 42. h4 {[%clk 0:01:15.5]} 42... Rc6
{[%clk 0:00:47]} 43. Be1 {[%clk 0:01:09]} 43... Rd6 {[%clk 0:00:46.3]} 44. Rxd6
{[%clk 0:01:01.1]} 44... Kxd6 {[%clk 0:00:48.2]} 45. Bd2 {[%clk 0:01:01.2]}
45... g6 {[%clk 0:00:44.4]} 46. Ke3 {[%clk 0:01:01]} 46... h5 {[%clk 0:00:41.1]}
47. gxh5 {[%clk 0:01:00.9]} 47... gxh5 {[%clk 0:00:42.1]} 48. Kd3 {[%clk
0:00:56.3]} 48... Kc6 {[%clk 0:00:41.6]} 49. c4 {[%clk 0:00:55.5]} 49... Nd4
{[%clk 0:00:37.2]} 50. Bh6 {[%clk 0:00:51.1]} 50... f5 {[%clk 0:00:26]} 51. c5
{[%clk 0:00:45.4]} 51... f4 {[%clk 0:00:22.3]} 52. Bxf4 {[%clk 0:00:46.2]} 52...
Ne6 {[%clk 0:00:10.7]} 53. Bg3 {[%clk 0:00:43.5]} 53... Nf8 {[%clk 0:00:08.3]}
54. Bxe5 {[%clk 0:00:43.9]} 54... Ng6 {[%clk 0:00:09.1]} 55. Bg3 {[%clk
0:00:44.8]} 55... Kd7 {[%clk 0:00:08.7]} 56. Kd4 {[%clk 0:00:44.4]} 56... Ke6
{[%clk 0:00:09.8]} 57. c6 {[%clk 0:00:45.6]} 57... Ne7 {[%clk 0:00:07.9]} 58.
Kc5 {[%clk 0:00:46.4]} 58... a3 {[%clk 0:00:09.8]} 59. bxa3 {[%clk 0:00:46.9]}
1-0